[Event "Masters Tournament (MTO)"]
[Site "Biel, Switzerland"]
[Date "2026.07.16"]
[Round "4.15"]
[White "Xu, Chang(Cq)"]
[Black "Kukushkin, Ivan"]
[Result "1-0"]
[TimeControl "100+30+30sec/move"]
[WhiteTitle "-"]
[BlackTitle "-"]
[WhiteFideId "8641757"]
[BlackFideId "11634103"]
[WhiteElo "2125"]
[BlackElo "2257"]

1. e4 {[%clk 01:40:47]} {[%emt 00:00:12]} c5 {[%clk 01:35:44]} {[%emt
00:05:17]} 2. Nf3 {[%clk 01:41:06]} {[%emt 00:00:10]} d6 {[%clk 01:34:01]}
{[%emt 00:02:13]} 3. d4 {[%clk 01:41:22]} {[%emt 00:00:13]} cxd4 {[%clk
01:34:26]} {[%emt 00:00:05]} 4. Nxd4 {[%clk 01:41:45]} {[%emt 00:00:07]} Nf6
{[%clk 01:33:56]} {[%emt 00:01:00]} 5. Nc3 {[%clk 01:42:04]} {[%emt 00:00:11]}
a6 {[%clk 01:33:17]} {[%emt 00:01:10]} 6. Bg5 {[%clk 01:41:36]} {[%emt
00:00:57]} Nbd7 {[%clk 01:30:03]} {[%emt 00:03:45]} 7. Qe2 {[%clk 01:41:18]}
{[%emt 00:00:47]} Qa5 {[%clk 01:29:37]} {[%emt 00:00:57]} 8. Bd2 {[%clk
01:35:41]} {[%emt 00:06:06]} Qc7 {[%clk 01:24:52]} {[%emt 00:05:16]} 9. g4
{[%clk 01:28:11]} {[%emt 00:07:59]} Qb6 {[%clk 01:17:44]} {[%emt 00:07:39]} 10.
Nb3 {[%clk 01:21:29]} {[%emt 00:07:11]} Ne5 {[%clk 00:57:38]} {[%emt 00:20:37]}
11. h3 {[%clk 01:16:56]} {[%emt 00:05:02]} Be6 {[%clk 00:47:03]} {[%emt
00:11:06]} 12. Be3 {[%clk 01:08:19]} {[%emt 00:09:06]} Qc7 {[%clk 00:44:29]}
{[%emt 00:03:05]} 13. f4 {[%clk 01:06:44]} {[%emt 00:02:04]} Nc4 {[%clk
00:34:39]} {[%emt 00:10:21]} 14. O-O-O {[%clk 01:01:50]} {[%emt 00:05:22]} Nxe3
{[%clk 00:30:25]} {[%emt 00:04:46]} 15. Qxe3 {[%clk 01:02:11]} {[%emt
00:00:08]} Rc8 {[%clk 00:29:34]} {[%emt 00:01:22]} 16. Qd4 {[%clk 00:48:14]}
{[%emt 00:14:26]} b5 {[%clk 00:25:25]} {[%emt 00:04:40]} 17. Rh2 {[%clk
00:45:41]} {[%emt 00:03:02]} Bxb3 {[%clk 00:20:42]} {[%emt 00:05:13]} 18. axb3
{[%clk 00:45:58]} {[%emt 00:00:13]} e5 {[%clk 00:20:30]} {[%emt 00:00:43]} 19.
Qe3 {[%clk 00:44:35]} {[%emt 00:01:52]} h6 {[%clk 00:18:52]} {[%emt 00:02:09]}
20. Kb1 {[%clk 00:42:46]} {[%emt 00:02:18]} Be7 {[%clk 00:18:31]} {[%emt
00:00:52]} 21. Qf3 {[%clk 00:38:38]} {[%emt 00:04:37]} exf4 {[%clk 00:17:28]}
{[%emt 00:01:34]} 22. Qxf4 {[%clk 00:38:46]} {[%emt 00:00:21]} Qc5 {[%clk
00:16:57]} {[%emt 00:01:01]} 23. Rf2 {[%clk 00:28:17]} {[%emt 00:10:58]} O-O
{[%clk 00:16:13]} {[%emt 00:01:15]} 24. Bd3 {[%clk 00:28:24]} {[%emt 00:00:23]}
Qb4 {[%clk 00:11:59]} {[%emt 00:04:45]} 25. Qd2 {[%clk 00:20:46]} {[%emt
00:08:07]} Bd8 {[%clk 00:09:53]} {[%emt 00:02:36]} 26. Nd5 {[%clk 00:07:24]}
{[%emt 00:13:52]} Nxd5 {[%clk 00:09:37]} {[%emt 00:00:47]} 27. exd5 {[%clk
00:07:47]} {[%emt 00:00:06]} Qxd2 {[%clk 00:10:00]} {[%emt 00:00:08]} 28. Rdxd2
{[%clk 00:08:05]} {[%emt 00:00:11]} Bf6 {[%clk 00:09:12]} {[%emt 00:01:18]} 29.
b4 {[%clk 00:07:32]} {[%emt 00:01:03]} Rfe8 {[%clk 00:08:38]} {[%emt 00:01:05]}
30. Rde2 {[%clk 00:07:46]} {[%emt 00:00:15]} Kf8 {[%clk 00:07:45]} {[%emt
00:01:23]} 31. Ka2 {[%clk 00:07:01]} {[%emt 00:01:16]} Red8 {[%clk 00:06:24]}
{[%emt 00:01:51]} 32. Kb3 {[%clk 00:07:13]} {[%emt 00:00:17]} Ra8 {[%clk
00:06:28]} {[%emt 00:00:26]} 33. Rf1 {[%clk 00:07:24]} {[%emt 00:00:19]} a5
{[%clk 00:05:36]} {[%emt 00:01:22]} 34. Bxb5 {[%clk 00:07:09]} {[%emt
00:00:45]} axb4 {[%clk 00:05:51]} {[%emt 00:00:15]} 35. Bc6 {[%clk 00:07:08]}
{[%emt 00:00:31]} Ra7 {[%clk 00:04:39]} {[%emt 00:01:43]} 36. Re4 {[%clk
00:07:02]} {[%emt 00:00:35]} Rb8 {[%clk 00:04:36]} {[%emt 00:00:33]} 37. Rff4
{[%clk 00:06:51]} {[%emt 00:00:40]} Ra1 {[%clk 00:02:52]} {[%emt 00:02:15]} 38.
Rxb4 {[%clk 00:06:57]} {[%emt 00:00:25]} Rd8 {[%clk 00:03:07]} {[%emt
00:00:14]} 39. Rf3 {[%clk 00:06:21]} {[%emt 00:01:05]} Rb1 {[%clk 00:02:34]}
{[%emt 00:01:04]} 40. c3 {[%clk 00:06:43]} {[%emt 00:00:08]} Kg8 {[%clk
00:02:30]} {[%emt 00:00:34]} 41. Rb7 {[%clk 00:06:32]} {[%emt 00:00:41]} Re1
{[%clk 00:02:09]} {[%emt 00:00:51]} 42. Kc4 {[%clk 00:06:42]} {[%emt 00:00:20]}
Rb1 {[%clk 00:01:43]} {[%emt 00:00:56]} 43. b4 {[%clk 00:06:58]} {[%emt
00:00:14]} Rb2 {[%clk 00:29:00]} {[%emt 00:03:13]} 44. Ra7 {[%clk 00:30:24]}
{[%emt 00:07:04]} Rf8 {[%clk 00:27:39]} {[%emt 00:01:51]} 45. b5 {[%clk
00:24:44]} {[%emt 00:06:10]} Be5 {[%emt 00:03:52]} 46. Ra4 {[%clk 00:23:17]}
Bh2 {[%clk 00:25:36]} {[%emt 00:01:08]} 47. Rf1 {[%clk 00:22:43]} {[%emt
00:01:03]} Rb8 {[%clk 00:22:18]} {[%emt 00:03:49]} 48. Rb4 {[%clk 00:21:50]}
{[%emt 00:01:23]} Rxb4+ {[%clk 00:20:59]} {[%emt 00:01:49]} 49. Kxb4 {[%clk
00:22:13]} {[%emt 00:00:07]} g5 {[%clk 00:20:53]} {[%emt 00:00:35]} 50. Ka5
{[%clk 00:22:06]} {[%emt 00:00:38]} Be5 {[%clk 00:19:20]} {[%emt 00:02:03]} 51.
Ka6 {[%clk 00:21:16]} {[%emt 00:01:19]} Bxc3 {[%clk 00:19:21]} {[%emt
00:00:30]} 52. Ka7 {[%clk 00:21:41]} {[%emt 00:00:05]} Rf8 {[%clk 00:19:20]}
{[%emt 00:00:32]} 53. Kb7 {[%clk 00:21:39]} {[%emt 00:00:32]} Bd4 {[%clk
00:19:12]} {[%emt 00:00:37]} 54. Kc7 {[%clk 00:22:01]} {[%emt 00:00:08]} f6
{[%clk 00:18:28]} {[%emt 00:01:14]} 55. Kxd6 {[%clk 00:22:09]} {[%emt
00:00:22]} Be5+ {[%clk 00:17:40]} {[%emt 00:01:19]} 56. Kc5 {[%clk 00:22:26]}
{[%emt 00:00:12]} Kf7 {[%clk 00:17:42]} {[%emt 00:00:27]} 57. Rf2 {[%clk
00:22:24]} {[%emt 00:00:33]} h5 {[%clk 00:17:25]} {[%emt 00:00:47]} 58. Ra2
{[%clk 00:22:34]} {[%emt 00:00:19]} hxg4 {[%clk 00:17:50]} {[%emt 00:00:06]} 59.
hxg4 {[%clk 00:22:55]} {[%emt 00:00:10]} Rh8 {[%clk 00:18:14]} {[%emt
00:00:05]} 60. Ra7+ {[%clk 00:23:13]} {[%emt 00:00:12]} Kg6 {[%clk 00:18:39]}
{[%emt 00:00:05]} 61. Bd7 {[%clk 00:23:03]} {[%emt 00:00:40]} f5 {[%clk
00:19:01]} {[%emt 00:00:08]} 62. Bxf5+ {[%clk 00:23:17]} {[%emt 00:00:16]} Kf6
{[%clk 00:19:28]} {[%emt 00:00:03]} 63. d6 {[%clk 00:23:22]} {[%emt 00:00:25]}
Bf4 {[%clk 00:18:07]} {[%emt 00:01:52]} 64. Kc6 {[%clk 00:23:33]} {[%emt
00:00:18]} Rh1 {[%clk 00:17:16]} {[%emt 00:01:21]} 65. d7 {[%clk 00:22:42]}
{[%emt 00:01:21]} Rc1+ {[%clk 00:16:41]} {[%emt 00:01:05]} 66. Kd5 {[%clk
00:22:45]} {[%emt 00:00:26]} Rd1+ {[%clk 00:16:51]} {[%emt 00:00:22]} 67. Ke4
{[%clk 00:23:01]} {[%emt 00:00:13]} Ke7 {[%clk 00:16:24]} {[%emt 00:00:56]} 68.
Ra8 {[%clk 00:23:25]} {[%emt 00:00:07]} Bc7 {[%clk 00:16:48]} {[%emt 00:00:07]}
69. Re8+ {[%clk 00:23:49]} {[%emt 00:00:05]} Kf7 {[%clk 00:17:05]} {[%emt
00:00:13]} 70. Rc8 {[%clk 00:23:53]} {[%emt 00:00:26]} Ba5 {[%clk 00:17:26]}
{[%emt 00:00:09]} 71. Rc6 {[%clk 00:23:49]} {[%emt 00:00:34]} Bd8 {[%clk
00:17:32]} {[%emt 00:00:24]} 72. Ke5 {[%clk 00:21:58]} {[%emt 00:02:21]} Re1+
{[%clk 00:17:19]} {[%emt 00:00:43]} 73. Kd4 {[%clk 00:21:51]} {[%emt 00:00:36]}
Rd1+ {[%clk 00:17:25]} {[%emt 00:00:25]} 74. Ke3 {[%clk 00:21:09]} {[%emt
00:01:12]} Re1+ {[%clk 00:17:33]} {[%emt 00:00:23]} 75. Kd3 {[%clk 00:20:55]}
{[%emt 00:00:44]} Rb1 {[%clk 00:16:57]} {[%emt 00:01:05]} 76. Rc5 {[%clk
00:20:34]} {[%emt 00:00:52]} Kf6 {[%clk 00:14:59]} {[%emt 00:02:27]} 77. Kc2
{[%clk 00:20:35]} {[%emt 00:00:28]} Rb4 {[%clk 00:14:44]} {[%emt 00:00:46]} 78.
Kc3 {[%clk 00:20:53]} {[%emt 00:00:12]} Rf4 {[%clk 00:14:06]} {[%emt 00:01:09]}
79. b6 {[%clk 00:20:36]} {[%emt 00:00:46]} Rf3+ {[%clk 00:12:21]} {[%emt
00:02:16]} 80. Kc4 {[%clk 00:20:51]} {[%emt 00:00:14]} Rf4+ {[%clk 00:11:22]}
{[%emt 00:01:29]} 81. Kb5 {[%clk 00:21:14]} {[%emt 00:00:07]} Rf2 {[%clk
00:11:46]} {[%emt 00:00:06]} 82. Ka6 {[%clk 00:21:01]} {[%emt 00:00:43]} Ra2+
{[%clk 00:10:41]} {[%emt 00:01:35]} 83. Kb7 {[%clk 00:21:25]} {[%emt 00:00:06]}
Ra3 {[%clk 00:10:49]} {[%emt 00:00:22]} 84. Rc6+ {[%clk 00:21:47]} {[%emt
00:00:08]} Kf7 {[%clk 00:11:12]} {[%emt 00:00:07]} 85. Re6 {[%clk 00:21:40]}
{[%emt 00:00:37]} Be7 {[%clk 00:10:07]} {[%emt 00:01:35]} 86. Kc7 {[%clk
00:22:04]} {[%emt 00:00:06]} Rc3+ {[%clk 00:10:17]} {[%emt 00:00:20]} 87. Rc6
{[%clk 00:22:16]} {[%emt 00:00:18]} Bd8+ {[%clk 00:09:47]} {[%emt 00:01:00]} 88.
Kxd8 {[%clk 00:22:39]} {[%emt 00:00:08]} Rxc6 {[%clk 00:10:13]} {[%emt
00:00:04]} 89. b7 {[%clk 00:23:03]} {[%emt 00:00:06]} Rb6 {[%clk 00:09:55]}
{[%emt 00:00:47]} 90. Kc7 {[%clk 00:23:25]} {[%emt 00:00:08]} Rb3 {[%clk
00:10:15]} {[%emt 00:00:10]} 91. d8=Q {[%clk 00:23:00]} {[%emt 00:00:24]} 1-0

[Event "Masters Tournament (MTO)"]
[Site "Biel, Switzerland"]
[Date "2026.07.16"]
[Round "4.16"]
[White "Ragavan, Samarth Rajesh"]
[Black "Gireada, Daniel"]
[Result "1-0"]
[TimeControl "100+30+30sec/move"]
[WhiteTitle "-"]
[BlackTitle "-"]
[WhiteFideId "39918106"]
[BlackFideId "1206451"]
[WhiteElo "2106"]
[BlackElo "2255"]

1. Nf3 {[%clk 01:40:57]} {[%emt 00:00:03]} d5 {[%clk 01:40:32]} {[%emt
00:00:28]} 2. g3 {[%clk 01:41:20]} {[%emt 00:00:06]} c5 {[%clk 01:40:35]}
{[%emt 00:00:29]} 3. Bg2 {[%clk 01:41:45]} {[%emt 00:00:04]} Nc6 {[%clk
01:40:46]} {[%emt 00:00:20]} 4. d4 {[%clk 01:42:11]} {[%emt 00:00:04]} Nf6
{[%clk 01:40:33]} {[%emt 00:00:42]} 5. O-O {[%clk 01:42:31]} {[%emt 00:00:10]}
e6 {[%clk 01:33:16]} {[%emt 00:07:48]} 6. c4 {[%clk 01:42:53]} {[%emt
00:00:07]} Be7 {[%clk 01:29:17]} {[%emt 00:04:29]} 7. cxd5 {[%clk 01:43:18]}
{[%emt 00:00:05]} Nxd5 {[%clk 01:27:58]} {[%emt 00:01:49]} 8. dxc5 {[%clk
01:35:21]} {[%emt 00:08:28]} O-O {[%clk 01:26:59]} {[%emt 00:01:29]} 9. Bd2
{[%clk 01:31:11]} {[%emt 00:04:40]} Bxc5 {[%clk 01:21:45]} {[%emt 00:05:44]} 10.
Nc3 {[%clk 01:31:37]} {[%emt 00:00:04]} Nf6 {[%clk 01:15:06]} {[%emt 00:07:09]}
11. Rc1 {[%clk 01:30:43]} {[%emt 00:01:24]} e5 {[%clk 01:09:07]} {[%emt
00:06:29]} 12. Na4 {[%clk 01:24:19]} {[%emt 00:06:53]} Bd6 {[%clk 00:56:53]}
{[%emt 00:12:44]} 13. Be3 {[%clk 01:24:19]} {[%emt 00:00:30]} Qe7 {[%clk
00:55:26]} {[%emt 00:01:58]} 14. a3 {[%clk 01:19:04]} {[%emt 00:05:45]} Rd8
{[%clk 00:48:46]} {[%emt 00:07:09]} 15. Qc2 {[%clk 01:18:30]} {[%emt 00:01:04]}
Bd7 {[%clk 00:41:42]} {[%emt 00:07:35]} 16. Nc5 {[%clk 01:15:01]} {[%emt
00:03:58]} Be8 {[%clk 00:41:59]} {[%emt 00:00:12]} 17. Bh3 {[%clk 01:12:57]}
{[%emt 00:02:35]} b6 {[%clk 00:37:41]} {[%emt 00:04:48]} 18. Ne4 {[%clk
01:12:05]} {[%emt 00:01:22]} Nd4 {[%clk 00:35:19]} {[%emt 00:02:53]} 19. Bxd4
{[%clk 01:09:15]} {[%emt 00:03:20]} exd4 {[%clk 00:35:36]} {[%emt 00:00:12]} 20.
Nxd6 {[%clk 01:09:12]} {[%emt 00:00:33]} Rxd6 {[%clk 00:29:05]} {[%emt
00:07:01]} 21. Qc7 {[%clk 01:04:08]} {[%emt 00:05:34]} Qxc7 {[%clk 00:19:49]}
{[%emt 00:09:46]} 22. Rxc7 {[%clk 01:04:27]} {[%emt 00:00:10]} Bb5 {[%clk
00:19:37]} {[%emt 00:00:43]} 23. Re1 {[%clk 01:04:08]} {[%emt 00:00:49]} Re8
{[%clk 00:19:21]} {[%emt 00:00:46]} 24. Bf1 {[%clk 01:03:58]} {[%emt 00:00:40]}
a5 {[%clk 00:15:35]} {[%emt 00:04:17]} 25. Rd1 {[%clk 00:54:56]} {[%emt
00:09:32]} Bxe2 {[%clk 00:11:12]} {[%emt 00:04:52]} 26. Bxe2 {[%clk 00:55:20]}
{[%emt 00:00:07]} Rxe2 {[%clk 00:11:24]} {[%emt 00:00:18]} 27. Rxd4 {[%clk
00:55:45]} {[%emt 00:00:05]} Rxd4 {[%clk 00:11:00]} {[%emt 00:00:54]} 28. Nxd4
{[%clk 00:56:09]} {[%emt 00:00:06]} Re1+ {[%clk 00:11:20]} {[%emt 00:00:10]} 29.
Kg2 {[%clk 00:56:34]} {[%emt 00:00:04]} g6 {[%clk 00:11:08]} {[%emt 00:00:42]}
30. Rc6 {[%clk 00:56:43]} {[%emt 00:00:21]} Ne4 {[%clk 00:07:02]} {[%emt
00:04:36]} 31. Rxb6 {[%clk 00:56:55]} {[%emt 00:00:19]} Rd1 {[%clk 00:07:22]}
{[%emt 00:00:09]} 32. Ne2 {[%clk 00:52:22]} {[%emt 00:05:04]} Rd2 {[%clk
00:05:33]} {[%emt 00:02:19]} 33. Kf3 {[%clk 00:52:43]} {[%emt 00:00:08]} f5
{[%clk 00:05:51]} {[%emt 00:00:11]} 34. Ke3 {[%clk 00:52:46]} {[%emt 00:00:28]}
Rd5 {[%clk 00:03:52]} {[%emt 00:02:28]} 35. Nc3 {[%clk 00:52:13]} {[%emt
00:01:04]} Nxc3 {[%clk 00:03:25]} {[%emt 00:00:57]} 36. bxc3 {[%clk 00:52:40]}
{[%emt 00:00:03]} Re5+ {[%clk 00:03:38]} {[%emt 00:00:17]} 37. Kd2 {[%clk
00:52:28]} {[%emt 00:00:42]} Rd5+ {[%clk 00:03:53]} {[%emt 00:00:15]} 38. Kc2
{[%clk 00:52:49]} {[%emt 00:00:09]} Re5 {[%clk 00:04:20]} {[%emt 00:00:04]} 39.
Rd6 {[%clk 00:53:09]} {[%emt 00:00:09]} Kf7 {[%clk 00:04:18]} {[%emt 00:00:32]}
40. c4 {[%clk 00:53:20]} {[%emt 00:00:19]} Ke7 {[%clk 00:03:43]} {[%emt
00:01:05]} 41. Rd2 {[%clk 00:53:45]} {[%emt 00:00:05]} Rc5 {[%clk 00:02:51]}
{[%emt 00:01:22]} 42. Kc3 {[%clk 00:53:56]} {[%emt 00:00:17]} Re5 {[%clk
00:02:00]} {[%emt 00:01:22]} 43. Rd3 {[%clk 00:53:43]} {[%emt 00:00:44]} Kf6
{[%clk 00:29:13]} {[%emt 00:03:17]} 44. Re3 {[%clk 01:24:06]} {[%emt 00:00:07]}
Rc5 {[%clk 00:29:26]} {[%emt 00:00:17]} 45. Kd4 {[%clk 01:24:06]} {[%emt
00:00:31]} Rc8 {[%clk 00:23:07]} {[%emt 00:06:48]} 46. c5 {[%clk 01:24:11]}
{[%emt 00:00:25]} Rd8+ {[%clk 00:23:26]} {[%emt 00:00:11]} 47. Kc4 {[%clk
01:24:35]} {[%emt 00:00:07]} Rd2 {[%clk 00:23:42]} {[%emt 00:00:13]} 48. c6
{[%clk 01:25:01]} {[%emt 00:00:05]} Rd8 {[%clk 00:22:54]} {[%emt 00:01:16]} 49.
Kb5 {[%clk 01:25:00]} {[%emt 00:00:32]} 1-0

[Event "Masters Tournament (MTO)"]
[Site "Biel, Switzerland"]
[Date "2026.07.16"]
[Round "4.17"]
[White "Hasenohr, Benedict"]
[Black "Iafelice, Vincenzo"]
[Result "1-0"]
[TimeControl "100+30+30sec/move"]
[WhiteTitle "-"]
[BlackTitle "-"]
[WhiteFideId "1303309"]
[BlackFideId "810541"]
[WhiteElo "2247"]
[BlackElo "2086"]

1. Nf3 {[%clk 01:40:56]} {[%emt 00:00:02]} Nf6 {[%clk 01:40:49]} {[%emt
00:00:13]} 2. g3 {[%clk 01:41:19]} {[%emt 00:00:08]} d5 {[%clk 01:41:03]}
{[%emt 00:00:15]} 3. Bg2 {[%clk 01:41:42]} {[%emt 00:00:07]} e6 {[%clk
01:41:19]} {[%emt 00:00:14]} 4. d4 {[%clk 01:42:01]} {[%emt 00:00:11]} c5
{[%clk 01:41:33]} {[%emt 00:00:16]} 5. O-O {[%clk 01:31:04]} {[%emt 00:11:27]}
Nc6 {[%clk 01:41:49]} {[%emt 00:00:14]} 6. c4 {[%clk 01:23:57]} {[%emt
00:07:37]} dxc4 {[%clk 01:42:12]} {[%emt 00:00:07]} 7. Qa4 {[%clk 01:21:47]}
{[%emt 00:02:40]} Bd7 {[%clk 01:42:32]} {[%emt 00:00:09]} 8. Qxc4 {[%clk
01:21:02]} {[%emt 00:01:15]} b5 {[%clk 01:42:48]} {[%emt 00:00:14]} 9. Qc3
{[%clk 01:15:23]} {[%emt 00:06:10]} b4 {[%clk 01:43:04]} {[%emt 00:00:14]} 10.
Qe3 {[%clk 01:03:17]} {[%emt 00:12:36]} c4 {[%clk 01:20:02]} {[%emt 00:23:31]}
11. Ne5 {[%clk 00:56:43]} {[%emt 00:07:04]} Nxe5 {[%clk 01:15:07]} {[%emt
00:05:25]} 12. Bxa8 {[%clk 00:54:26]} {[%emt 00:02:47]} Qxa8 {[%clk 01:15:32]}
{[%emt 00:00:05]} 13. dxe5 {[%clk 00:54:14]} {[%emt 00:00:43]} Nd5 {[%clk
01:08:54]} {[%emt 00:07:08]} 14. Qd4 {[%clk 00:53:50]} {[%emt 00:00:53]} Qc8
{[%clk 01:04:49]} {[%emt 00:04:36]} 15. Nd2 {[%clk 00:50:20]} {[%emt 00:04:00]}
Bc5 {[%clk 00:50:48]} {[%emt 00:14:30]} 16. Qg4 {[%clk 00:46:30]} {[%emt
00:04:20]} Kf8 {[%clk 00:48:13]} {[%emt 00:03:06]} 17. Qxc4 {[%clk 00:37:25]}
{[%emt 00:09:35]} h5 {[%clk 00:44:50]} {[%emt 00:03:52]} 18. Kh1 {[%clk
00:34:07]} {[%emt 00:03:48]} Nb6 {[%clk 00:40:35]} {[%emt 00:04:45]} 19. Qc2
{[%clk 00:33:20]} {[%emt 00:01:17]} Ba4 {[%clk 00:31:50]} {[%emt 00:09:16]} 20.
Nb3 {[%clk 00:31:01]} {[%emt 00:02:49]} Qa8+ {[%clk 00:31:15]} {[%emt
00:01:04]} 21. f3 {[%clk 00:30:43]} {[%emt 00:00:48]} Be7 {[%clk 00:28:14]}
{[%emt 00:03:32]} 22. Be3 {[%clk 00:30:03]} {[%emt 00:01:10]} h4 {[%clk
00:25:27]} {[%emt 00:03:17]} 23. g4 {[%clk 00:30:26]} {[%emt 00:00:06]} Nd7
{[%clk 00:25:33]} {[%emt 00:00:24]} 24. Rac1 {[%clk 00:30:28]} {[%emt
00:00:27]} Nxe5 {[%clk 00:20:12]} {[%emt 00:05:52]} 25. Qc8+ {[%clk 00:30:48]}
{[%emt 00:00:11]} Qxc8 {[%clk 00:20:38]} {[%emt 00:00:04]} 26. Rxc8+ {[%clk
00:31:13]} {[%emt 00:00:05]} Be8 {[%clk 00:21:03]} {[%emt 00:00:05]} 27. Rfc1
{[%clk 00:30:30]} {[%emt 00:01:13]} f5 {[%clk 00:20:13]} {[%emt 00:01:19]} 28.
Bd4 {[%clk 00:30:26]} {[%emt 00:00:34]} Ng6 {[%clk 00:18:41]} {[%emt 00:02:03]}
29. Nc5 {[%clk 00:29:36]} {[%emt 00:01:20]} Kf7 {[%clk 00:18:40]} {[%emt
00:00:31]} 30. e4 {[%clk 00:28:27]} {[%emt 00:01:38]} Nf4 {[%clk 00:15:58]}
{[%emt 00:03:12]} 31. exf5 {[%clk 00:26:13]} {[%emt 00:02:44]} exf5 {[%clk
00:16:19]} {[%emt 00:00:09]} 32. Re1 {[%clk 00:26:30]} {[%emt 00:00:14]} fxg4
{[%clk 00:15:15]} {[%emt 00:01:33]} 33. Re4 {[%clk 00:25:24]} {[%emt 00:01:37]}
Bd6 {[%clk 00:10:38]} {[%emt 00:05:06]} 34. Nb7 {[%clk 00:25:25]} {[%emt
00:00:29]} 1-0

[Event "Masters Tournament (MTO)"]
[Site "Biel, Switzerland"]
[Date "2026.07.16"]
[Round "4.18"]
[White "Yasaswi, Krishna Bommi"]
[Black "Matsumura, Cocoro"]
[Result "1-0"]
[TimeControl "100+30+30sec/move"]
[WhiteTitle "-"]
[BlackTitle "-"]
[WhiteFideId "33368783"]
[BlackFideId "36087114"]
[WhiteElo "2085"]
[BlackElo "2225"]

1. d4 {[%clk 01:40:57]} {[%emt 00:00:02]} d5 {[%clk 01:40:55]} {[%emt
00:00:05]} 2. Bf4 {[%clk 01:41:21]} {[%emt 00:00:07]} c5 {[%clk 01:41:20]}
{[%emt 00:00:04]} 3. e3 {[%clk 01:41:46]} {[%emt 00:00:05]} Nc6 {[%clk
01:41:46]} {[%emt 00:00:06]} 4. Nf3 {[%clk 01:41:20]} {[%emt 00:00:54]} Nf6
{[%clk 01:42:10]} {[%emt 00:00:06]} 5. Nbd2 {[%clk 01:41:41]} {[%emt 00:00:09]}
Nh5 {[%clk 01:42:33]} {[%emt 00:00:07]} 6. dxc5 {[%clk 01:42:04]} {[%emt
00:00:08]} Nxf4 {[%clk 01:42:57]} {[%emt 00:00:06]} 7. exf4 {[%clk 01:42:30]}
{[%emt 00:00:04]} g6 {[%clk 01:43:22]} {[%emt 00:00:05]} 8. c3 {[%clk
01:42:55]} {[%emt 00:00:05]} Bg7 {[%clk 01:43:47]} {[%emt 00:00:04]} 9. Bb5
{[%clk 01:43:01]} {[%emt 00:00:25]} O-O {[%clk 01:44:09]} {[%emt 00:00:06]} 10.
O-O {[%clk 01:43:20]} {[%emt 00:00:12]} Qc7 {[%clk 01:44:09]} {[%emt 00:00:31]}
11. Nb3 {[%clk 01:43:21]} {[%emt 00:00:28]} Rd8 {[%clk 01:43:29]} {[%emt
00:01:10]} 12. Re1 {[%clk 01:43:28]} {[%emt 00:00:24]} f6 {[%clk 01:37:12]}
{[%emt 00:06:47]} 13. Qe2 {[%clk 01:34:33]} {[%emt 00:09:25]} Bg4 {[%clk
01:28:15]} {[%emt 00:09:27]} 14. Bxc6 {[%clk 01:30:30]} {[%emt 00:04:33]} Bxf3
{[%clk 01:28:00]} {[%emt 00:00:44]} 15. Qxf3 {[%clk 01:28:53]} {[%emt
00:02:07]} bxc6 {[%clk 01:27:59]} {[%emt 00:00:31]} 16. Nd4 {[%clk 01:27:10]}
{[%emt 00:02:12]} Rdb8 {[%clk 01:16:43]} {[%emt 00:11:47]} 17. Re6 {[%clk
01:19:30]} {[%emt 00:08:10]} Rxb2 {[%clk 01:10:31]} 18. Rae1 {[%clk 01:09:59]}
{[%emt 00:16:43]} Qd7 {[%clk 01:01:20]} {[%emt 00:09:41]} 19. g3 {[%clk
01:06:14]} {[%emt 00:04:15]} Bf8 {[%clk 00:58:25]} {[%emt 00:03:25]} 20. Nxc6
{[%clk 00:59:57]} {[%emt 00:06:47]} Re8 {[%clk 00:54:58]} {[%emt 00:03:57]} 21.
Nb4 {[%clk 00:54:49]} {[%emt 00:05:38]} Rb1 {[%clk 00:18:19]} {[%emt 00:37:09]}
22. Qxd5 {[%clk 00:34:15]} {[%emt 00:21:05]} Qxd5 {[%clk 00:17:58]} {[%emt
00:00:50]} 23. Nxd5 {[%clk 00:34:38]} {[%emt 00:00:07]} Rxe1+ {[%clk 00:18:23]}
{[%emt 00:00:04]} 24. Rxe1 {[%clk 00:35:02]} Kf7 {[%clk 00:18:17]} {[%emt
00:00:43]} 25. Nc7 {[%clk 00:28:04]} {[%emt 00:07:28]} Rc8 {[%clk 00:18:16]}
{[%emt 00:00:31]} 26. Ne6 {[%clk 00:27:01]} {[%emt 00:01:33]} Bh6 {[%clk
00:15:34]} {[%emt 00:03:11]} 27. c6 {[%clk 00:21:30]} {[%emt 00:06:02]} Ke8
{[%clk 00:10:00]} {[%emt 00:06:04]} 28. c7 {[%clk 00:21:33]} {[%emt 00:00:27]}
Kd7 {[%clk 00:10:20]} {[%emt 00:00:10]} 29. Kg2 {[%clk 00:19:08]} {[%emt
00:02:54]} Kd6 {[%clk 00:08:42]} {[%emt 00:02:09]} 30. Kf3 {[%clk 00:16:58]}
{[%emt 00:02:40]} f5 {[%clk 00:05:44]} {[%emt 00:03:28]} 31. h3 {[%clk
00:14:01]} {[%emt 00:03:27]} Kd5 {[%clk 00:04:15]} {[%emt 00:01:59]} 32. c4+
{[%clk 00:12:08]} {[%emt 00:02:24]} Kd6 {[%clk 00:03:28]} {[%emt 00:01:17]} 33.
g4 {[%clk 00:10:10]} {[%emt 00:02:27]} Kd7 {[%clk 00:02:52]} {[%emt 00:01:06]}
34. g5 {[%clk 00:07:41]} {[%emt 00:02:59]} Bf8 {[%clk 00:03:16]} {[%emt
00:00:05]} 35. Re5 {[%clk 00:07:59]} {[%emt 00:00:12]} h6 {[%clk 00:02:27]}
{[%emt 00:01:20]} 36. h4 {[%clk 00:08:23]} {[%emt 00:00:06]} hxg5 {[%clk
00:02:51]} {[%emt 00:00:06]} 37. hxg5 {[%clk 00:08:48]} {[%emt 00:00:05]} Bg7
{[%clk 00:02:50]} {[%emt 00:00:31]} 38. Nxg7 {[%clk 00:08:59]} {[%emt
00:00:19]} Rxc7 {[%clk 00:03:16]} {[%emt 00:00:05]} 39. Rd5+ {[%clk 00:07:59]}
{[%emt 00:01:29]} 1-0